Cogmind - Beta 10.2 @@@ ROGUE MODE // 2020.10.31 @ 15:57:29 Player: PhenomPhear Result: Destroyed by Y-72 Warden with Quantum Rifle Performance ------------- Evolutions (7) 3500 Regions Visited (20) 4000 Robots Destroyed (215) 1075 Value Destroyed (12089) 12089 Prototype IDs (16) 320 Alien Tech Used (0) 0 Bonus (6593) 6593 TOTAL SCORE: 27577 Bonus ------- High Alert Combat Kills 1065 Follower Combat Kills 1297 Entered Garrisons 1400 Used RIF Installer 3500 Friendly Fire -669 Cogmind --------- Core Integrity 0/1300 Matter 300/300 Energy 99/100 System Corruption 12% Temperature Cool (9) Movement Core (50) Location -3/Research Parts ------- > --- POWER (2) -------- (None) > --- PROPULSION (4) --- (None) > --- UTILITY (12) ----- Enhanced Optical Array Advanced Core Analyzer > --- WEAPON (3) ------- (None) > --- INVENTORY (4) ---- Advanced Remote Datajack Peak State ------------ > --- POWER ------------ Reinforced Fission Core Reinforced Fission Core > --- PROPULSION ------- Medium Treads Heavy Treads Advanced Medium Treads > --- UTILITY ---------- Advanced Cooling System Large Storage Unit Large Storage Unit Large Storage Unit Layered Heavy Armor Plating Layered Heavy Armor Plating Relay Coupler [Swarmer] Relay Coupler [Brawler] > --- WEAPON ----------- Gauss Cannon Hardcell Cannon Hardcell Cannon > --- INVENTORY -------- Medium Treads Compact Wheel Fusion Compressor Energy Well Energy Well Matter Compressor Long-range Terrain Scanner Layered Heavy Armor Plating Layered Heavy Armor Plating Layered Heavy Armor Plating Improved Thermal Defense Suite Relay Coupler [Sentry] Relay Coupler [Sentry] Relay Coupler [Sentry] Relay Coupler [Demolisher] Relay Coupler [Hunter] Power Sword [Rating: 101] Favorites ----------- Power Reinforced Deuterium Engine Engine Reinforced Deuterium Engine Power Core Reinforced Fission Core Reactor Light Antimatter Reactor Propulsion Improved Medium Treads Treads Improved Medium Treads Leg Carbon-fiber Leg Wheel Armored Huge Wheel Flight Unit VTOL Module Utility Large Storage Unit Device Improved Cooling System Storage Large Storage Unit Processor Enhanced Optical Array Hackware Relay Coupler [Sentry] Protection Improved Medium Armor Plating Weapon Improved Heavy Machine Gun Energy Gun EM Shotgun Energy Cannon Heavy Plasma Cannon Ballistic Gun Improved Heavy Machine Gun Ballistic Cannon Gauss Cannon Launcher Heavy Rocket Launcher Special Weapon Remote Datajack Slashing Weapon Power Sword Piercing Weapon Force Lance Build | -11 -10 -9 -8 -8 -7 -7 -7 -7 -6 -6 -6 -6 -5 -5 -4 -4 -4 -4 -4 -3 ------- Run | Scr Mat Mat Mat Gar Fac Gar Fac Gar Fac Gar Fac Gar Fac Gar Fac Gar Fac Upp Upp Res Slots Evolved 14 | . . 2 2 . 2 . . . 2 . . . 2 . 2 . . . . 2 Power 1 | . . . . . . . . . . . . . 1 . . . . . . . Propulsion 2 | . . . . . . . . . 1 . . . 1 . . . . . . . Utility 10 | . . 2 2 . 1 . . . 1 . . . . . 2 . . . . 2 Weapon 1 | . . . . . 1 . . . . . . . . . . . . . . . Parts Attached 401 | 6 5 16 6 28 11 13 13 4 33 36 47 19 6 34 23 59 3 17 . 22 Power 30 | 1 . 2 . 4 2 . . . 2 1 2 1 2 2 3 4 . 2 . 2 Engine 11 | 1 . 2 . 4 2 . . . 1 1 . . . . . . . . . . Core 13 | . . . . . . . . . 1 . 2 1 2 2 1 1 . 2 . 1 Reactor 6 | . . . . . . . . . . . . . . . 2 3 . . . 1 Propulsion 54 | 2 . 2 . 5 . 1 1 . 2 2 7 1 2 7 5 9 . 5 . 3 Treads 27 | 2 . 2 . 5 . 1 1 . 1 1 7 . . . 3 1 . 1 . 2 Leg 15 | . . . . . . . . . . 1 . 1 2 7 2 2 . . . . Wheel 4 | . . . . . . . . . 1 . . . . . . 1 . 1 . 1 Hover . | . . . . . . . . . . . . . . . . . . . . . Flight 8 | . . . . . . . . . . . . . . . . 5 . 3 . . Utility 165 | 1 2 5 4 5 6 9 6 2 16 12 17 10 2 16 11 30 2 4 . 5 Device 49 | . . 1 1 2 1 2 2 . 7 5 6 4 . 4 4 7 . 1 . 2 Storage 27 | 1 2 1 . . . . 1 . 4 . . 2 . 1 2 8 2 2 . 1 Processor 3 | . . . . . . . . . . . . . . . . . . 1 . 2 Hackware 46 | . . 1 . . . 6 1 1 4 4 5 4 1 8 2 9 . . . . Protection 40 | . . 2 3 3 5 1 2 1 1 3 6 . 1 3 3 6 . . . . Artifact . | . . . . . . . . . . . . . . . . . . . . . Weapon 152 | 2 3 7 2 14 3 3 6 2 13 21 21 7 . 9 4 16 1 6 . 12 Energy Gun 15 | . 2 5 . 2 . . . . . . . . . 2 . 3 . . . 1 Energy Cannon 25 | . 1 1 1 5 . 1 1 . 5 7 2 1 . . . . . . . . Ballistic Gun 38 | 2 . 1 . 2 2 . 3 . 5 6 8 . . . . 8 . 1 . . Ballistic Cannon 12 | . . . . 1 1 . . 1 . . . 1 . 3 4 1 . . . . Launcher 14 | . . . 1 1 . . 1 1 1 3 4 1 . 1 . . . . . . Special Weapon 28 | . . . . 2 . 2 1 . 2 5 6 3 . 1 . 1 . 1 . 4 Impact Weapon . | . . . . . . . . . . . . . . . . . . . . . Slashing Weapon 10 | . . . . 1 . . . . . . 1 1 . 2 . 3 1 1 . . Piercing Weapon 10 | . . . . . . . . . . . . . . . . . . 3 . 7 Special Melee Weapon . | . . . . . . . . . . . . . . . . . . . . . Unidentified Prototypes 7 | . . . . . 1 . . . 1 . 1 . . . 2 . . 1 . 1 Parts Lost 122 | . . 5 1 13 . 2 1 2 5 8 5 9 . 6 5 31 5 15 . 9 Power 11 | . . 1 . 3 . . . . . 1 . 1 . . . 3 1 . . 1 Propulsion 30 | . . 1 . 2 . . 1 . . 1 . 2 . 2 2 8 3 5 . 3 Utility 44 | . . . 1 3 . 2 . 1 3 3 3 3 . 1 2 10 1 9 . 2 Weapon 37 | . . 3 . 5 . . . 1 2 3 2 3 . 3 1 10 . 1 . 3 Highest Loss Streak 14 | . . 2 1 11 . 1 1 2 4 4 2 9 . 4 1 14 4 6 . 7 Average Slot Usage (%) 88 | . 91 97 98 94 100 97 98 100 95 92 97 89 88 98 90 71 58 40 . 26 Engine 3 | . 14 11 9 8 7 7 7 7 3 . 3 . . . . . . . . . Core 2 | . . . . . . . . . 2 5 2 5 11 11 7 4 . . . . Treads 11 | . 28 22 18 17 15 15 14 15 12 4 17 9 5 . 5 3 . 1 . 3 Leg 2 | . . . . . . . . . . . . 3 5 21 11 1 . . . . Device 10 | . . 10 17 19 16 10 14 15 19 12 8 10 5 6 1 11 . 1 . . Storage 16 | . 20 25 18 18 15 15 15 15 17 20 20 24 25 19 14 15 2 5 . 1 Hackware 9 | . . 1 6 . . 10 14 12 9 8 12 12 11 11 24 7 33 15 . . Protection 7 | . . 4 11 13 21 13 7 9 5 11 9 1 3 6 4 3 . . . . Energy Gun 1 | . 2 18 9 1 . . . . . . . . . . . . . . . . Energy Cannon 2 | . 4 1 5 8 . . 3 7 6 7 1 1 . . . . . . . . Ballistic Gun 7 | . 20 1 . 1 18 15 12 4 8 8 13 1 . . . 5 1 1 . . Ballistic Cannon 2 | . . . . 2 3 . . 2 1 . . 3 5 8 9 2 . . . . Special Weapon 2 | . . . . . . 6 5 4 . 1 2 5 5 2 5 . . . . . Naked Turns . | . . . . . . . . . . . . . . . . . . . . . Heaviest Build 179 | 9 41 49 59 79 91 84 85 91 95 104 99 100 87 95 135 179 20 25 . 36 Greatest Support 128 | 40 40 40 40 60 60 60 60 60 90 30 86 84 45 60 128 128 20 28 5 105 Greatest Overweight (x) 22 | . 1 2 1 11 1 1 2 1 3 3 3 2 3 2 4 22 1 2 . 2 Average Overweight (x) 1 | . . 1 1 1 1 1 1 1 1 2 1 1 2 1 1 1 . . . . Largest Inventory Capacity 22 | 6 16 18 16 16 16 16 16 16 22 22 22 22 22 22 22 22 6 4 4 4 Average Capacity 16 | 5 10 16 16 16 16 16 16 16 17 22 22 22 22 22 19 13 4 4 4 4 Most Carried 22 | . 10 16 16 16 16 16 16 16 19 22 22 21 22 22 22 22 4 4 4 4 Average Carried 15 | . 3 11 15 14 15 14 15 15 15 19 21 17 20 21 18 11 3 2 4 2 Final Capacity 22 | 6 16 16 16 16 16 16 16 16 22 22 22 22 22 22 22 4 4 4 4 4 Final Carried 22 | . 10 16 15 16 16 16 15 14 19 22 20 21 21 22 21 4 4 4 4 1 Class Distribution -------------------- 25% | Botlord-Mutant 21% | Bothacker-Mutant 19% | Scavenger-Mutant 12% | Mutant 6% | Bothacker-Tank 5% | Botlord-Tank 4% | Scavenger-Tank Dominant Class ---------------- Mutant | -10/Materials Mutant | -9/Materials Scavenger-Mutant | -8/Materials Scavenger-Mutant | -8/Garrison Scavenger-Tank | -7/Factory Bothacker-Mutant | -7/Garrison Bothacker-Mutant | -7/Factory Bothacker-Mutant | -7/Garrison Bothacker-Mutant | -6/Factory Bothacker-Mutant | -6/Garrison Botlord-Mutant | -6/Factory Botlord-Mutant | -6/Garrison Botlord-Mutant | -5/Factory Botlord-Mutant | -5/Garrison Botlord-Mutant | -4/Factory Scavenger-Mutant | -4/Garrison Mutant | -4/Factory Mutant | -4/Upper Caves Mutant | -4/Upper Caves Mutant | -3/Research Resources | -11 -10 -9 -8 -8 -7 -7 -7 -7 -6 -6 -6 -6 -5 -5 -4 -4 -4 -4 -4 -3 ----------- Run | Scr Mat Mat Mat Gar Fac Gar Fac Gar Fac Gar Fac Gar Fac Gar Fac Gar Fac Upp Upp Res Matter Collected 10624 | 197 133 156 217 459 219 555 124 374 975 839 1336 421 63 761 732 2610 . 194 . 259 Remotely 372 | . . . . . . . . . . . 321 51 . . . . . . . . Salvage Created 8545 | . 224 722 375 684 82 315 50 411 1214 650 737 92 . 559 736 1003 . 235 . 456 Parts 390 | . 13 49 30 36 2 9 1 16 39 42 44 2 . 17 18 31 . 14 . 27 Haulers Intercepted 3 | . 1 . . . 1 . . . . . . . . . 1 . . . . . Recyclers Shooed 8 | . . . 1 . . . . . 3 . . . . . 2 . . . . 2 Parts Field Recycled . | . . . . . . . . . . . . . . . . . . . . . Retrieved Matter . | . . . . . . . . . . . . . . . . . . . . . Parts Self-Destructed 5 | . . . . . . . . . . . . . . . . . . 5 . . Prevented . | . . . . . . . . . . . . . . . . . . . . . Kills | -11 -10 -9 -8 -8 -7 -7 -7 -7 -6 -6 -6 -6 -5 -5 -4 -4 -4 -4 -4 -3 ------- Run | Scr Mat Mat Mat Gar Fac Gar Fac Gar Fac Gar Fac Gar Fac Gar Fac Gar Fac Upp Upp Res Combat Hostiles Destroyed 180 | . 4 15 13 15 1 7 2 8 19 18 15 3 . 17 3 28 . 4 . 8 Melee 13 | . . . . 1 . . . . . . 1 1 . . . 3 . 4 . 3 Guns 71 | . 4 13 1 2 1 6 2 3 7 6 12 . . . . 12 . . . 2 Cannons 48 | . . 1 3 4 . 1 . 5 6 6 1 . . 6 3 12 . . . . AOE 38 | . . 1 9 6 . . . . 3 5 1 2 . 11 . . . . . . Classes Destroyed 18 | . 2 7 . 2 . 3 . . 2 . . . . . . . . 2 . . Worker 9 | . . 2 2 . . . . . 1 . 3 . . . . . . . . 1 Builder 6 | . . 2 2 . . . . . . . 2 . . . . . . . . . Hauler 3 | . 1 . . . 1 . . . . . . . . . 1 . . . . . Recycler 7 | . . 1 . . . . . . 2 . . . . . 4 . . . . . Operator 1 | . . 1 . . . . . . . . . . . . . . . . . . Watcher 2 | . . . . . . . . . 1 . 1 . . . . . . . . . Swarmer 55 | . . 7 8 . . . 2 . 3 9 3 . . 3 . 14 . 4 . 2 Grunt 83 | . 4 2 5 10 . 5 . 7 9 6 4 1 . 14 1 11 . . . 4 Brawler 3 | . . . . 1 . . . 1 . . 1 . . . . . . . . . Duelist 7 | . . 1 . 2 . . . . 4 . . . . . . . . . . . Protector 1 | . . . . . . 1 . . . . . . . . . . . . . . Sentry 8 | . . 5 . . 1 . . . . . 1 . . . . 1 . . . . Demolisher 1 | . . . . . . 1 . . . . . . . . . . . . . . Hunter 7 | . . . . . . 1 . . . 2 1 2 . . 1 . . . . . Programmer 13 | . . . . . . . . . 3 . 5 . . . 2 1 . . . 2 Behemoth 4 | . . . . 2 . . . . . 1 . . . . . 1 . . . . Decomposer 2 | . . . . . . . . . . . . . . . . . . 2 . . Samaritan 2 | . . . . . . . . . . . . . . . . . . 2 . . Tinkerer 1 | . . . . . . . . . . . . . . . . . . 1 . . Best Kill Streak 10 | . 2 4 10 4 1 2 2 3 4 5 4 3 . 10 3 7 . 3 . 3 Combat Bots Only 10 | . 2 4 8 4 1 2 2 3 4 5 4 3 . 10 2 7 . 3 . 3 Max Kills in Single Turn 4 | . 1 2 4 2 1 2 1 2 2 2 1 1 . 3 1 1 . 1 . 1 Gunslinging . | . . . . . . . . . . . . . . . . . . . . . Exploded 4 | . . 1 4 2 . . . . 1 2 1 1 . 3 . . . . . . Melee 1 | . . . . 1 . . . . . . 1 1 . . . 1 . 1 . 1 Uniques/NPCs Destroyed . | . . . . . . . . . . . . . . . . . . . . . Combat | -11 -10 -9 -8 -8 -7 -7 -7 -7 -6 -6 -6 -6 -5 -5 -4 -4 -4 -4 -4 -3 -------- Run | Scr Mat Mat Mat Gar Fac Gar Fac Gar Fac Gar Fac Gar Fac Gar Fac Gar Fac Upp Upp Res Damage Taken 24876 | . 141 856 330 1679 263 1141 132 509 986 1913 1509 1000 49 1283 1399 7594 245 865 . 2982 Core 3863 | . 23 181 14 494 17 154 6 32 87 137 114 118 . 153 78 443 60 424 . 1328 Absorbed by Shields 510 | . . . . . . 38 . . 199 242 . 31 . . . . . . . . Reduced by Siege Mode 32 | . . . . . . . . . . . . . . . . 32 . . . . Core Remaining (%) 57 | 100 90 54 . 7 . . . 70 . . . 46 . 84 . . . . 12 . Volleys Fired 716 | . 15 55 21 42 6 50 10 23 61 55 75 24 3 44 41 155 . . . 36 Largest 3 | . 2 2 2 2 3 3 3 2 3 3 3 2 1 3 2 3 . . . 1 Hottest 270 | . 90 101 108 150 111 148 148 143 270 223 105 105 30 144 113 178 . . . 75 Shots Fired 1203 | . 30 110 32 50 18 86 18 39 125 102 142 25 3 67 69 251 . . . 36 Gun 647 | . 26 104 7 7 13 63 8 12 66 49 114 1 . 1 . 148 . . . 28 Cannon 368 | . 4 6 13 29 5 12 4 25 38 29 6 1 . 38 58 100 . . . . Launcher 65 | . . . 12 9 . . 2 2 10 10 6 5 . 9 . . . . . . Special 123 | . . . . 5 . 11 4 . 11 14 16 18 3 19 11 3 . . . 8 Kinetic 711 | . 20 6 . 7 18 63 8 20 80 49 114 1 . 38 58 229 . . . . Thermal 143 | . 4 11 . 15 . 12 4 17 24 29 6 1 . 1 . 19 . . . . Explosive 47 | . . . 12 9 . . 2 2 . 6 2 5 . 9 . . . . . . Electromagnetic 184 | . 6 93 20 19 . . . . 10 4 4 . . . . . . . . 28 Robot Hit Streak 31 | . 15 18 16 15 13 16 2 10 10 10 15 15 2 11 11 31 . . . 4 Robot Miss Streak 5 | . 2 3 2 2 2 2 2 3 3 5 3 2 1 3 4 3 . . . 2 Penetration Max 1 | . . . . . . 1 . 1 . . . . . . . . . . . . Secondary Targets 7 | . . 2 . . . 1 . . 2 1 . . . . . 1 . . . . Max Gunslinging Chain 1 | . . 1 . . . 1 . . 1 1 . . . . . 1 . . . . Shots Hit Robots 862 | . 23 75 20 42 14 62 7 26 88 58 98 25 2 42 39 190 1 14 . 36 Core Hits 406 | . 14 38 25 30 4 16 2 14 44 28 42 9 . 36 13 63 . 8 . 20 Critical Hits 34 | . . . . 1 2 3 . 9 2 2 2 . . 1 1 9 . . . 2 Critical Kills 10 | . . . . . 1 2 . 3 . 1 . . . . . 2 . . . 1 Critical Parts Destroyed 21 | . . . . 1 1 1 . 5 2 1 2 . . 1 1 5 . . . 1 Melee Attacks 95 | . . . . 4 . . . . . . 3 4 . 3 . 24 5 23 . 29 Impact . | . . . . . . . . . . . . . . . . . . . . . Slashing 44 | . . . . 4 . . . . . . 3 4 . 3 . 24 5 1 . . Piercing 51 | . . . . . . . . . . . . . . . . . . 22 . 29 Sneak Attacks 11 | . . . . . . . . . . . . . . . . . 1 6 . 4 Combat Hostiles . | . . . . . . . . . . . . . . . . . . . . . Follow-up Attacks . | . . . . . . . . . . . . . . . . . . . . . Damage Inflicted 24669 | . 279 1024 1533 1592 356 1247 104 902 2778 1669 2183 693 . 2179 1043 4550 109 1033 . 1395 Guns 7798 | . 243 742 68 95 223 919 73 70 1066 369 1699 24 . . . 1570 . . . 637 Cannons 7834 | . 36 90 341 628 133 328 31 525 917 668 124 29 . 512 1024 2448 . . . . Explosions 6308 | . . 192 1117 730 . . . 307 791 632 349 523 . 1667 . . . . . . Melee 2620 | . . . . 90 . . . . . . . 117 . . . 529 109 1033 . 742 Ramming 60 | . . . 7 . . . . . 4 . 11 . . . 19 3 . . . 16 Kinetic 10714 | . 131 30 . 207 356 919 73 237 1390 369 1699 24 . 512 1024 3743 . . . . Thermal 3150 | . 36 325 70 265 . 328 31 358 593 668 172 29 . . . 275 . . . . Explosive 4905 | . . . 1047 730 . . . 307 81 498 52 523 . 1667 . . . . . . Electromagnetic 3220 | . 112 669 409 300 . . . . 710 134 249 . . . . . . . . 637 Impact . | . . . . . . . . . . . . . . . . . . . . . Slashing 845 | . . . . 90 . . . . . . . 117 . . . 529 109 . . . Piercing 1775 | . . . . . . . . . . . . . . . . . . 1033 . 742 Highest Corruption 21 | . . . . . . . . 8 4 4 10 10 . . 2 16 21 21 21 12 Average Corruption 8 | . . . . . . . . 7 3 3 7 10 . . 1 12 17 21 21 8 Corruption Purged 4 | . . . . . . . . . . 2 2 . . . . . . . . . Effects 360 | . . . . . . . . 8 19 23 82 23 . . 2 132 18 40 1 12 Message Errors 61 | . . . . . . . . 3 5 5 12 3 . . 2 20 3 4 . 4 Matter Fused 56 | . . . . . . . . 2 5 8 18 2 . . . 12 1 7 . 1 Heat Flow Errors 29 | . . . . . . . . . . 1 12 5 . . . 8 . 2 . 1 Energy Discharges 28 | . . . . . . . . 1 4 2 8 . . . . 9 2 2 . . Parts Rejected 4 | . . . . . . . . . . . 1 . . . . 2 . . . 1 Data Loss (minor) 30 | . . . . . . . . 1 2 4 5 2 . . . 10 . 5 . 1 Data Loss (major) 14 | . . . . . . . . . . . 3 1 . . . 5 1 4 . . Misfires 7 | . . . . . . . . . . . 3 1 . . . 3 . . . . Alerts 6 | . . . . . . . . . . . . 2 . . . 3 . 1 . . Misdirections 43 | . . . . . . . . . . . . 1 . . . 17 9 13 1 2 Targeting Errors 64 | . . . . . . . . 1 3 2 14 5 . . . 33 2 2 . 2 Weapon Failures 18 | . . . . . . . . . . 1 6 1 . . . 10 . . . . Overload Shots . | . . . . . . . . . . . . . . . . . . . . . Overflow Damage 838 | . . 22 131 41 . . . 24 54 6 1 17 . 37 60 175 39 60 . 171 Projectiles 174 | . . . 2 . . . . 11 20 6 . . . 2 60 73 . . . . Explosions 284 | . . 22 129 41 . . . 13 34 . 1 9 . 35 . . . . . . Melee 380 | . . . . . . . . . . . . 8 . . . 102 39 60 . 171 Knockbacks 39 | . . . . 1 . . . 2 8 . . . . 5 6 17 . . . . Impact 1 | . . . . . . . . . . . . . . . 1 . . . . . Kinetic 32 | . . . . 1 . . . 2 5 . . . . 5 5 14 . . . . Secondary 6 | . . . . . . . . . 3 . . . . . . 3 . . . . Self-Inflicted Damage 319 | . . 113 44 24 . . . . 72 . . . . 56 4 . . . . 6 Shots 7 | . . 3 1 1 . . . . 1 . . . . 1 . . . . . . Rammed 14 | . . . 2 . . . . . 2 . 2 . . . 2 3 . . . 3 Targets Rammed 16 | . . . 2 . . . . . 2 . 3 . . . 2 3 . . . 4 Kicked . | . . . . . . . . . . . . . . . . . . . . . Crushed 2 | . . . . . . . . . . . 1 . . . . . . . . 1 Highest Temperature 558 | . 120 14 51 45 5 315 18 195 300 354 228 245 . 467 336 558 . 273 . 153 Average Temperature 112 | . 43 5 20 20 5 164 9 99 57 115 68 81 . 102 124 169 . 133 . 60 Received Heat Transfer 4025 | . 75 201 90 309 42 252 18 207 290 292 303 228 9 429 56 1002 . 63 . 159 Effects 20 | . . . . . . 2 . . . 3 . . . 5 2 8 . . . . Shutdowns 5 | . . . . . . . . . . . . . . 2 . 3 . . . . Energy Bleed 4 | . . . . . . . . . . 3 . . . . 1 . . . . . Interference 6 | . . . . . . 2 . . . . . . . . 1 3 . . . . Matter Decay 2 | . . . . . . . . . . . . . . . . 2 . . . . Damage (major) 3 | . . . . . . . . . . . . . . 3 . . . . . . Siege Activations 1 | . . . . . . . . . . . . . . . . 1 . . . . Total Turns 44 | . . . . . . . . . . . . . . . . 44 . . . . Longest Duration 44 | . . . . . . . . . . . . . . . . 44 . . . . Robots Corrupted 6 | . . . . 2 . . . . 3 . . . . . . . . . . 1 Combat Hostiles 6 | . . . . 2 . . . . 3 . . . . . . . . . . 1 Parts Fried 22 | . . 4 2 4 . . . . 6 . 2 . . . . . . . . 4 Impact Corruptions . | . . . . . . . . . . . . . . . . . . . . . Robots Melted 2 | . . . . . . . . . . 1 . . . . . 1 . . . . Combat Hostiles 2 | . . . . . . . . . . 1 . . . . . 1 . . . . Parts Melted 8 | . . . . 1 . . . 1 2 1 . . . . . 3 . . . . Heat Transferred 4876 | . 74 646 100 444 . 244 50 550 861 1000 248 37 . . . 622 . . . . Parts Sabotaged . | . . . . . . . . . . . . . . . . . . . . . Parts Stolen . | . . . . . . . . . . . . . . . . . . . . . Parts Stripped . | . . . . . . . . . . . . . . . . . . . . . Power Chain Reactions 6 | . . 4 1 . . . . . . . 1 . . . . . . . . . Missiles Intercepted . | . . . . . . . . . . . . . . . . . . . . . Alert | -11 -10 -9 -8 -8 -7 -7 -7 -7 -6 -6 -6 -6 -5 -5 -4 -4 -4 -4 -4 -3 ------- Run | Scr Mat Mat Mat Gar Fac Gar Fac Gar Fac Gar Fac Gar Fac Gar Fac Gar Fac Upp Upp Res Peak Influence 928 | . 69 272 665 641 358 483 283 390 483 928 557 413 217 816 602 818 601 . . 289 Initial 487 | . . 28 83 312 336 142 253 33 204 338 487 389 202 137 428 308 429 . . 103 Average 361 | . 23 135 283 547 254 283 173 246 169 612 438 372 200 618 460 558 522 . . 164 Maximum Alert Level 3 | . . 1 2 2 1 2 1 1 2 3 2 2 1 3 2 3 2 . . 1 Low Security (%) 25 | 100 100 70 46 . 40 10 53 20 56 . . . 31 14 . . . . . 88 Level 1 31 | . . 29 23 14 59 81 46 79 37 11 29 94 68 . 16 16 . . . 11 Level 2 36 | . . . 29 85 . 8 . . 6 49 70 5 . 44 83 71 100 . . . Level 3 6 | . . . . . . . . . . 39 . . . 41 . 11 . . . . Level 4 . | . . . . . . . . . . . . . . . . . . . . . Level 5 . | . . . . . . . . . . . . . . . . . . . . . High Security . | . . . . . . . . . . . . . . . . . . . . . Max Security . | . . . . . . . . . . . . . . . . . . . . . Squads Dispatched 37 | . 2 1 2 . . . 3 . 6 . 13 . . . 4 . 3 . . 3 Investigation 5 | . 1 . . . . . . . . . 2 . . . 1 . 1 . . . Extermination 9 | . . . . . . . 1 . 2 . 4 . . . 2 . . . . . Reinforcement 21 | . 1 1 2 . . . 2 . 4 . 5 . . . 1 . 2 . . 3 Assault 1 | . . . . . . . . . . . 1 . . . . . . . . . Garrison 1 | . . . . . . . . . . . 1 . . . . . . . . . Intercept . | . . . . . . . . . . . . . . . . . . . . . Construction Impeded 6 | . . . 1 . . . 1 . 1 . 3 . . . . . . . . . Haulers Reinforced 3 | . . . . . . . 1 . . . . . . . . . . . . 2 Stealth | -11 -10 -9 -8 -8 -7 -7 -7 -7 -6 -6 -6 -6 -5 -5 -4 -4 -4 -4 -4 -3 --------- Run | Scr Mat Mat Mat Gar Fac Gar Fac Gar Fac Gar Fac Gar Fac Gar Fac Gar Fac Upp Upp Res Distress Signals 14 | . 1 2 . . . . . . 4 . 1 . . . 1 . . . . 5 Communications Jammed 12 | . . . 6 . . . . . . . 3 . . . 3 . . . . . Distress Signals 9 | . . . 6 . . . . . . . 3 . . . . . . . . . Times Spotted 407 | . 7 28 20 14 2 20 8 15 33 31 40 15 1 34 21 49 14 14 . 41 Peak Tracking Total 15 | . 2 5 9 3 1 8 3 5 5 5 6 9 1 15 4 9 6 6 . 9 Tactical Retreats 44 | . . 1 2 . . 1 . 4 1 3 4 1 . . . 10 5 3 . 9 Traps | -11 -10 -9 -8 -8 -7 -7 -7 -7 -6 -6 -6 -6 -5 -5 -4 -4 -4 -4 -4 -3 ------- Run | Scr Mat Mat Mat Gar Fac Gar Fac Gar Fac Gar Fac Gar Fac Gar Fac Gar Fac Upp Upp Res Traps Triggered 55 | . 1 . . 3 3 10 1 3 5 7 6 3 . 7 1 4 . . . 1 Indirectly . | . . . . . . . . . . . . . . . . . . . . . Trap Hack Attempts . | . . . . . . . . . . . . . . . . . . . . . Triggered . | . . . . . . . . . . . . . . . . . . . . . Disarmed . | . . . . . . . . . . . . . . . . . . . . . Reprogrammed . | . . . . . . . . . . . . . . . . . . . . . Reused . | . . . . . . . . . . . . . . . . . . . . . Traps Extracted . | . . . . . . . . . . . . . . . . . . . . . Installed 1 | . . . . . . . . . . . . . . . . . . 1 . . Triggered 2 | . . . . . . . . . 1 . 1 . . . . . . . . . Machines | -11 -10 -9 -8 -8 -7 -7 -7 -7 -6 -6 -6 -6 -5 -5 -4 -4 -4 -4 -4 -3 ---------- Run | Scr Mat Mat Mat Gar Fac Gar Fac Gar Fac Gar Fac Gar Fac Gar Fac Gar Fac Upp Upp Res Machines Disabled 46 | . . 2 4 2 . 4 . 1 8 4 5 1 . 4 7 2 . 1 . 1 Max in Single Turn 2 | . . 2 1 1 . 1 . 1 1 1 1 1 . 1 1 1 . 1 . 1 Garrison Relay 18 | . . . . 2 . 4 . 1 . 4 . 1 . 4 . 2 . . . . Machines Sabotaged . | . . . . . . . . . . . . . . . . . . . . . Garrisons Compromised . | . . . . . . . . . . . . . . . . . . . . . Overloaded Fab Kills . | . . . . . . . . . . . . . . . . . . . . . Fab Network Shutdowns . | . . . . . . . . . . . . . . . . . . . . . Hacking | -11 -10 -9 -8 -8 -7 -7 -7 -7 -6 -6 -6 -6 -5 -5 -4 -4 -4 -4 -4 -3 --------- Run | Scr Mat Mat Mat Gar Fac Gar Fac Gar Fac Gar Fac Gar Fac Gar Fac Gar Fac Upp Upp Res Machines Accessed 50 | . 1 5 2 . 7 . 4 . 8 . 11 . 3 . 4 . 4 . . 1 Terminals 27 | . 1 4 1 . 3 . 1 . 6 . 6 . 1 . 1 . 2 . . 1 Fabricators 6 | . . . . . . . 1 . . . 3 . . . 1 . 1 . . . Repair Stations 3 | . . . . . 1 . . . . . 1 . . . 1 . . . . . Recycling Units 7 | . . 1 . . 2 . 1 . 1 . . . 1 . . . 1 . . . Scanalyzers . | . . . . . . . . . . . . . . . . . . . . . Garrison Access 7 | . . . 1 . 1 . 1 . 1 . 1 . 1 . 1 . . . . . Total Hacks 85 | . 2 10 5 . 12 . 5 . 11 . 20 . 5 . 6 . 8 . . 1 Successful 33 | . 2 3 3 . 3 . 3 . 2 . 8 . 2 . 4 . 3 . . . Failed 52 | . . 7 2 . 9 . 2 . 9 . 12 . 3 . 2 . 5 . . 1 Catastrophic 15 | . . 3 . . 2 . . . 4 . 2 . . . 1 . 2 . . 1 Database Lockouts . | . . . . . . . . . . . . . . . . . . . . . Manual 16 | . . 6 2 . . . . . 2 . 2 . 2 . 1 . . 1 . . Terminals 46 | . 2 9 3 . 4 . 2 . 9 . 9 . 2 . 1 . 4 . . 1 Fabricators 15 | . . . . . . . 1 . . . 9 . . . 3 . 2 . . . Repair Stations 4 | . . . . . 2 . . . . . 1 . . . 1 . . . . . Recycling Units 12 | . . 1 . . 5 . 1 . 1 . . . 2 . . . 2 . . . Scanalyzers . | . . . . . . . . . . . . . . . . . . . . . Garrison Access 8 | . . . 2 . 1 . 1 . 1 . 1 . 1 . 1 . . . . . Terminal Hacks 13 | . 2 2 2 . . . 1 . 1 . 3 . . . . . 2 . . . Record 1 | . . . . . . . . . . . . . . . . . 1 . . . Robot Schematic 1 | . . . . . . . . . . . 1 . . . . . . . . . Prototype ID Bank 4 | . . 1 1 . . . 1 . . . 1 . . . . . . . . . Garrison Index 2 | . . 1 1 . . . . . . . . . . . . . . . . . Alert Level 1 | . . . . . . . . . . . 1 . . . . . . . . . Locate Traps 1 | . 1 . . . . . . . . . . . . . . . . . . . Hauler Manifests 1 | . 1 . . . . . . . . . . . . . . . . . . . Zone Layout 2 | . . . . . . . . . 1 . . . . . . . 1 . . . Fabricator Hacks 6 | . . . . . . . . . . . 3 . . . 2 . 1 . . . Load Schematic 4 | . . . . . . . . . . . 2 . . . 1 . 1 . . . Build 2 | . . . . . . . . . . . 1 . . . 1 . . . . . Repair Station Hacks 1 | . . . . . 1 . . . . . . . . . . . . . . . Scan Component 1 | . . . . . 1 . . . . . . . . . . . . . . . Recycling Unit Hacks 3 | . . 1 . . 1 . 1 . . . . . . . . . . . . . Retrieve Components 3 | . . 1 . . 1 . 1 . . . . . . . . . . . . . Scanalyzer . | . . . . . . . . . . . . . . . . . . . . . Garrison Access Hacks 7 | . . . 1 . 1 . 1 . 1 . 1 . 1 . 1 . . . . . Unlock Access 7 | . . . 1 . 1 . 1 . 1 . 1 . 1 . 1 . . . . . Unauthorized Hacks 3 | . . . . . . . . . . . 1 . 1 . 1 . . . . . Terminals . | . . . . . . . . . . . . . . . . . . . . . Fabricators . | . . . . . . . . . . . . . . . . . . . . . Repair Stations 2 | . . . . . . . . . . . 1 . . . 1 . . . . . Mechanics 2 | . . . . . . . . . . . 1 . . . 1 . . . . . Recycling Units 1 | . . . . . . . . . . . . . 1 . . . . . . . Reject 1 | . . . . . . . . . . . . . 1 . . . . . . . Scanalyzers . | . . . . . . . . . . . . . . . . . . . . . Garrison Access . | . . . . . . . . . . . . . . . . . . . . . Data Cores Recovered . | . . . . . . . . . . . . . . . . . . . . . Used . | . . . . . . . . . . . . . . . . . . . . . Hacking Detections 37 | . . 3 1 . 6 . 3 . 7 . 8 . 2 . 3 . 3 . . 1 Full Trace Events 4 | . . . . . . . . . . . 2 . . . 1 . 1 . . . Feedback Events . | . . . . . . . . . . . . . . . . . . . . . Feedback Blocked . | . . . . . . . . . . . . . . . . . . . . . Robot Schematics Acquired 1 | . . . . . . . . . . . 1 . . . . . . . . . Robots Built 4 | . . . . . . . . . . . 2 . . . 2 . . . . . Matter 570 | . . . . . . . . . . . 285 . . . 285 . . . . . Time 228 | . . . . . . . . . . . 152 . . . 76 . . . . . Total Robot Build Rating 20 | . . . . . . . . . . . 10 . . . 10 . . . . . Part Schematics Acquired . | . . . . . . . . . . . . . . . . . . . . . Parts Built . | . . . . . . . . . . . . . . . . . . . . . Matter . | . . . . . . . . . . . . . . . . . . . . . Time . | . . . . . . . . . . . . . . . . . . . . . Total Part Build Rating . | . . . . . . . . . . . . . . . . . . . . . Parts Repaired . | . . . . . . . . . . . . . . . . . . . . . Time . | . . . . . . . . . . . . . . . . . . . . . Parts Recycled . | . . . . . . . . . . . . . . . . . . . . . Recycled Matter . | . . . . . . . . . . . . . . . . . . . . . Retrieved Matter . | . . . . . . . . . . . . . . . . . . . . . Retrieved Components 12 | . . 2 . . 3 . 7 . . . . . . . . . . . . . Parts Scanalyzed . | . . . . . . . . . . . . . . . . . . . . . Part Schematics Acquired . | . . . . . . . . . . . . . . . . . . . . . Parts Damaged . | . . . . . . . . . . . . . . . . . . . . . Bothacking | -11 -10 -9 -8 -8 -7 -7 -7 -7 -6 -6 -6 -6 -5 -5 -4 -4 -4 -4 -4 -3 ------------ Run | Scr Mat Mat Mat Gar Fac Gar Fac Gar Fac Gar Fac Gar Fac Gar Fac Gar Fac Upp Upp Res Used RIF Installer 7 | . . . . 1 . 1 . 1 . 1 . 1 . 1 . 1 . . . . Coupler Efficiency 1 | . . . . . . . . . . 1 . . . . . . . . . . Threat Obfuscator 1 | . . . . . . . . . . . . . . 1 . . . . . . Signal Jammer 1 | . . . . . . 1 . . . . . . . . . . . . . . Zone Cloak 1 | . . . . . . . . . . . . 1 . . . . . . . . Patrol Navigation 1 | . . . . . . . . 1 . . . . . . . . . . . . Autoassimilate 1 | . . . . . . . . . . . . . . . . 1 . . . . Robots Hacked 62 | . . . . . . 9 2 . 4 9 8 11 1 11 5 2 . . . . Non-combat 6 | . . . . . . . . . 2 . 4 . . . . . . . . . Combat 56 | . . . . . . 9 2 . 2 9 4 11 1 11 5 2 . . . . Robot Hacks Applied 65 | . . . . . . 10 2 . 4 9 10 11 1 11 5 2 . . . . parse_system 1 | . . . . . . . . . . . . . . . 1 . . . . . drop_inventory 1 | . . . . . . . . . . . 1 . . . . . . . . . reprogram_traps 1 | . . . . . . . . . . . 1 . . . . . . . . . summon_haulers 1 | . . . . . . . . . . . 1 . . . . . . . . . recall_investigation 1 | . . . . . . . . . . . 1 . . . . . . . . . spike_heat 3 | . . . . . . 1 . . . 1 . . . 1 . . . . . . overload_power 2 | . . . . . . 1 . . . . . . . . . 1 . . . . disable_weapons 1 | . . . . . . . . . . . 1 . . . . . . . . . overwrite_iff 4 | . . . . . . 1 . . . 2 . . . . . 1 . . . . streamctrl_high 2 | . . . . . . 2 . . . . . . . . . . . . . . formatsys_low 3 | . . . . . . . . . 1 . 2 . . . . . . . . . formatsys_high 45 | . . . . . . 5 2 . 3 6 3 11 1 10 4 . . . . . Relay Couplers Released 69 | . . . . 7 . 17 . 3 . 15 . 3 . 16 . 8 . . . . Machine Destruction 69 | . . . . 7 . 17 . 3 . 15 . 3 . 16 . 8 . . . . Attached 44 | . . . . . . 6 1 1 3 4 5 4 1 8 2 9 . . . . Robots Rewired . | . . . . . . . . . . . . . . . . . . . . . Allies Hacked 2 | . . . . . . . . . 1 . . . . . 1 . . . . . Hacks Repelled . | . . . . . . . . . . . . . . . . . . . . . Allies | -11 -10 -9 -8 -8 -7 -7 -7 -7 -6 -6 -6 -6 -5 -5 -4 -4 -4 -4 -4 -3 -------- Run | Scr Mat Mat Mat Gar Fac Gar Fac Gar Fac Gar Fac Gar Fac Gar Fac Gar Fac Upp Upp Res Total Allies 61 | . . . . . . 8 2 . 7 8 7 11 1 10 6 1 . . . . Largest Group 8 | . . . . . . 2 2 2 5 2 3 3 3 5 8 1 . . . . Highest-Rated Group 354 | . . . . . . 46 53 53 147 64 118 90 110 181 354 47 . . . . Highest-Rated Ally 81 | . . . . . . 34 32 32 41 41 41 81 49 49 56 47 . . . . Total Orders 6 | . . . . . . . . . 1 . 2 . . . 2 . . . . 1 FOLLOW 1 | . . . . . . . . . 1 . . . . . . . . . . . AID 2 | . . . . . . . . . . . 2 . . . . . . . . . EXPLORE 3 | . . . . . . . . . . . . . . . 2 . . . . 1 Ally Attacks 206 | . . . . . . 20 6 12 11 17 35 15 . 32 58 . . . . . Total Damage 8449 | . . . . . . 713 280 191 378 636 1144 572 . 815 3720 . . . . . Kills 52 | . . . . . . 3 3 3 3 5 6 3 . 7 19 . . . . . Allies Corrupted . | . . . . . . . . . . . . . . . . . . . . . Allies Melted . | . . . . . . . . . . . . . . . . . . . . . Intel | -11 -10 -9 -8 -8 -7 -7 -7 -7 -6 -6 -6 -6 -5 -5 -4 -4 -4 -4 -4 -3 ------- Run | Scr Mat Mat Mat Gar Fac Gar Fac Gar Fac Gar Fac Gar Fac Gar Fac Gar Fac Upp Upp Res Robot Analysis Total . | . . . . . . . . . . . . . . . . . . . . . Derelict Logs Recovered 2 | . . . . . . . . . . . . . . . . . . 2 . . Drone Launches 4 | . . . . . . . . . . . . . . . 2 . . . . 2 Drone Recoveries 1 | . . . . . . . . . . . . . . . 1 . . . . . Exploration | -11 -10 -9 -8 -8 -7 -7 -7 -7 -6 -6 -6 -6 -5 -5 -4 -4 -4 -4 -4 -3 ------------- Run | Scr Mat Mat Mat Gar Fac Gar Fac Gar Fac Gar Fac Gar Fac Gar Fac Gar Fac Upp Upp Res Turns Passed 17704 | 67 679 916 423 987 786 1160 867 539 1839 1064 2111 482 283 1117 1170 1856 209 499 3 647 Spaces Moved 9888 | 39 367 342 188 440 408 545 454 218 1026 593 955 201 129 587 585 1106 475 574 8 648 Core 402 | 3 . . . 1 . . . . . . . . . . . 9 . 139 . 250 Treads 5004 | 36 367 342 188 439 408 545 454 218 455 9 705 201 121 . 277 144 . 19 . 76 Legs 985 | . . . . . . . . . . . . . 8 587 308 82 . . . . Wheels 1673 | . . . . . . . . . 571 584 250 . . . . 132 . 103 . 33 Hover . | . . . . . . . . . . . . . . . . . . . . . Flight 1824 | . . . . . . . . . . . . . . . . 739 475 313 8 289 Fastest Speed 31 | 50 160 180 180 160 180 180 180 180 120 120 130 180 150 150 150 31 31 34 40 40 Average Speed 141 | 151 161 180 180 180 180 180 180 180 143 130 165 194 204 151 171 112 37 69 40 64 Slowest Speed 1240 | 160 180 200 180 600 180 180 200 180 180 220 220 200 220 180 240 1240 117 200 40 145 Overloaded Moves . | . . . . . . . . . . . . . . . . . . . . . Propulsion Burnouts . | . . . . . . . . . . . . . . . . . . . . . Robots Hopped 6 | . . . . . . . . . . . . . . . . . 3 2 . 1 Cave-ins Triggered . | . . . . . . . . . . . . . . . . . . . . . Exploration Rate (%) 37 | 3 41 25 25 54 14 77 12 43 36 88 34 48 4 83 15 61 21 68 5 27 Regions Visited 20 Branch Regions 2 Pre-discovered Areas 1 | . . . . . . . . . . . . . . . . . . 1 . . Known Exits Taken 7 | . . . 1 . 1 . 1 . 1 . 1 . 1 . 1 . . . . . Unknown Exits Taken 6 | 1 1 1 . . . . . . . . . . . . . . 1 1 1 . Scrap Searched 1 | . . . . . . . . . . . . . . . . . . 1 . . Spaces Dug 76 | . . . 14 6 . . 13 . . 8 24 . . . . . 4 3 . 4 Terrain Destroyed 364 | . . 19 74 41 2 4 32 28 34 12 30 16 . 40 15 6 4 3 . 4 Melee 13 | . . . . . . . . . . . 2 . . . . . 4 3 . 4 Projectile 43 | . . . . . 2 4 4 2 6 2 1 . . 1 15 6 . . . . AOE 308 | . . 19 74 41 . . 28 26 28 10 27 16 . 39 . . . . . . Terrain Rammed . | . . . . . . . . . . . . . . . . . . . . . Walls Destroyed . | . . . . . . . . . . . . . . . . . . . . . Machines Disabled . | . . . . . . . . . . . . . . . . . . . . . Actions | -11 -10 -9 -8 -8 -7 -7 -7 -7 -6 -6 -6 -6 -5 -5 -4 -4 -4 -4 -4 -3 --------- Run | Scr Mat Mat Mat Gar Fac Gar Fac Gar Fac Gar Fac Gar Fac Gar Fac Gar Fac Upp Upp Res Total 12376 | 44 425 531 238 570 445 650 488 325 1298 799 1365 264 146 750 689 1450 493 627 7 772 Wait 825 | . 30 103 15 22 8 6 4 72 143 56 253 2 2 23 4 51 8 2 . 21 Move 9863 | 38 366 341 188 439 408 544 454 217 1026 592 955 200 128 586 585 1105 468 570 7 646 Hop 5 | . . . . . . . . . . . . . . . . . 3 1 . 1 Pick Up 161 | . 9 12 3 17 4 10 2 2 18 20 9 8 4 11 9 18 1 3 . 1 Fast Attach 141 | 6 1 2 1 9 5 2 2 . 7 2 16 6 2 7 15 37 2 9 . 10 Attach 89 | . . 7 2 6 2 2 1 2 5 9 4 6 1 5 3 13 1 8 . 12 Detach 29 | . . . . . . 1 . . . . 3 2 . 1 1 4 1 7 . 9 Swap 172 | . 4 7 3 13 4 9 10 2 21 25 27 7 3 22 6 9 . . . . Drop 148 | . . 4 3 16 6 7 5 1 15 5 14 . 3 13 20 25 4 4 . 3 Fire 716 | . 15 55 21 42 6 50 10 23 61 55 75 24 3 44 41 155 . . . 36 Melee 94 | . . . . 4 . . . . . . 3 4 . 3 . 24 5 22 . 29 Ram 3 | . . . . . . . . . . . . . . . . . . . . 3 Kick 1 | . . . . . . . . . . . . . . . 1 . . . . . Crush 12 | . . . 2 . . . . . 2 . 3 . . . 1 3 . . . 1 Escape Stasis 111 | . . . . 2 2 18 . 6 . 35 2 5 . 35 . 6 . . . . Rewire 5 | . . . . . . 1 . . . . 1 . . . 3 . . . . . Trap 1 | . . . . . . . . . . . . . . . . . . 1 . . Miscellaneous . | . . . . . . . . . . . . . . . . . . . . . Route ------- -11/Scrapyard -10/Materials -9/Materials (discovered 2 exits: *Mat / [*Sto]) -8/Materials (discovered 2 exits: *Fac / Gar) -8/Garrison -7/Factory -7/Garrison (discovered 3 exits: *Fac x3) -7/Factory (discovered 2 exits: *Fac / Gar) -7/Garrison -6/Factory (discovered 3 exits: *Fac x2 / Gar) -6/Garrison (discovered 3 exits: *Fac x3) -6/Factory (discovered 2 exits: *Fac / Gar) -6/Garrison -5/Factory -5/Garrison (discovered 3 exits: *Fac x3) -4/Factory -4/Garrison (discovered 2 exits: *Fac x2) -4/Factory -4/Upper Caves -4/Upper Caves -3/Research (discovered 1 exit: [*Res]) History --------- Turn | Location | Event 41 | -11/Scrapyard | Discovered new exit (range 16) 68 | -11/Scrapyard | Entered Materials 316 | -10/Materials | Build established: Mutant 584 | -10/Materials | Discovered new exit (range 3) 747 | -10/Materials | Entered another Materials area 747 | -9/Materials | Evolved 2 slots: Utility x2 1028 | -9/Materials | Discovered new exit (range 9) 1395 | -9/Materials | Discovered new exit (range 6) 1566 | -9/Materials | Build established: Scavenger-Mutant 1663 | -9/Materials | Entered another Materials area 1663 | -8/Materials | Evolved 2 slots: Utility x2 1990 | -8/Materials | Destroyed 8 combat bots 2027 | -8/Materials | Discovered new exit (range 16) 2086 | -8/Materials | Identified exit to Garrison 2086 | -8/Materials | Entered Garrison 2095 | -8/Garrison | Installed Relay Interface Framework 2140 | -8/Garrison | Triggered checkpoint 2193 | -8/Garrison | Garrison Relay disabled 2426 | -8/Garrison | Triggered checkpoint 2430 | -8/Garrison | Triggered checkpoint 2476 | -8/Garrison | Discovered new exit (range 13) 2492 | -8/Garrison | Triggered checkpoint 2614 | -8/Garrison | Garrison Relay disabled 2760 | -8/Garrison | Spotted B-75 Beast 2760 | -8/Garrison | Spotted B-75 Beast 2787 | -8/Garrison | Destroyed B-75 Beast 2809 | -8/Garrison | Core integrity fell below 50% 2825 | -8/Garrison | Core integrity fell below 20% 2828 | -8/Garrison | Destroyed B-75 Beast 2849 | -8/Garrison | Lost 11 parts (3p2n2u4w) 3073 | -8/Garrison | Entered Factory 3073 | -7/Factory | Evolved 2 slots: Utility x1, Weapon x1 3370 | -7/Factory | Build established: Scavenger-Tank 3859 | -7/Factory | Identified exit to Garrison 3859 | -7/Factory | Entered Garrison 3896 | -7/Garrison | Triggered checkpoint 3920 | -7/Garrison | Garrison Relay disabled 4084 | -7/Garrison | Triggered checkpoint 4084 | -7/Garrison | Triggered checkpoint 4205 | -7/Garrison | Discovered new exit (range 9) 4371 | -7/Garrison | Discovered new exit (range 14) 4379 | -7/Garrison | Build established: Bothacker-Mutant 4410 | -7/Garrison | Expanded RIF knowledge: Signal Jamming 4482 | -7/Garrison | Triggered checkpoint 4512 | -7/Garrison | Garrison Relay disabled 4610 | -7/Garrison | Triggered checkpoint 4681 | -7/Garrison | Discovered new exit (range 10) 4700 | -7/Garrison | Triggered checkpoint 4722 | -7/Garrison | Garrison Relay disabled 4828 | -7/Garrison | Triggered checkpoint 4910 | -7/Garrison | Triggered checkpoint 4937 | -7/Garrison | Garrison Relay disabled 5019 | -7/Garrison | Entered Factory 5019 | -7/Factory | Accompanied by 1 ally 5438 | -7/Factory | Discovered new exit (range 12) 5886 | -7/Factory | Identified exit to Garrison 5886 | -7/Factory | Entered Garrison 5886 | -7/Garrison | Accompanied by 2 allies 5895 | -7/Garrison | Expanded RIF knowledge: Watcher Feeds 5970 | -7/Garrison | Triggered checkpoint 5999 | -7/Garrison | Garrison Relay disabled 6152 | -7/Garrison | Triggered checkpoint 6322 | -7/Garrison | Discovered new exit (range 12) 6425 | -7/Garrison | Entered Factory 6425 | -6/Factory | Evolved 2 slots: Propulsion x1, Utility x1 6834 | -6/Factory | Lost 4 parts (3u1w) 7693 | -6/Factory | Discovered new exit (range 14) 7698 | -6/Factory | Build established: Bothacker-Tank 8124 | -6/Factory | Discovered new exit (range 6) 8264 | -6/Factory | Identified exit to Garrison 8264 | -6/Factory | Entered Garrison 8264 | -6/Garrison | Accompanied by 1 ally 8322 | -6/Garrison | Triggered checkpoint 8355 | -6/Garrison | Garrison Relay disabled 8456 | -6/Garrison | Spotted B-75 Beast 8488 | -6/Garrison | Destroyed B-75 Beast 8528 | -6/Garrison | Lost 4 parts (1n3u) 8692 | -6/Garrison | Triggered checkpoint 8771 | -6/Garrison | Discovered new exit (range 8) 8804 | -6/Garrison | Triggered checkpoint 8829 | -6/Garrison | Garrison Relay disabled 8894 | -6/Garrison | Triggered checkpoint 8923 | -6/Garrison | Build established: Bothacker-Mutant 8980 | -6/Garrison | Triggered checkpoint 9023 | -6/Garrison | Garrison Relay disabled 9080 | -6/Garrison | Discovered new exit (range 8) 9099 | -6/Garrison | Expanded RIF knowledge: Coupler Efficiency 9210 | -6/Garrison | Triggered checkpoint 9247 | -6/Garrison | Garrison Relay disabled 9315 | -6/Garrison | Discovered new exit (range 8) 9328 | -6/Garrison | Entered Factory 9662 | -6/Factory | Build established: Botlord-Mutant 10473 | -6/Factory | Discovered new exit (range 16) 10917 | -6/Factory | Fabricated H-66 Slayer (x2) 11298 | -6/Factory | System corruption reached 10% 11404 | -6/Factory | Garrison activated, responded to threat 11428 | -6/Factory | First assault squad dispatched 11439 | -6/Factory | Identified exit to Garrison 11439 | -6/Factory | Entered Garrison 11503 | -6/Garrison | Spotted B-75 Beast 11507 | -6/Garrison | Triggered checkpoint 11510 | -6/Garrison | Assimilated Beast 5a with formatsys_high 11515 | -6/Garrison | Triggered checkpoint 11516 | -6/Garrison | Triggered checkpoint 11517 | -6/Garrison | Triggered checkpoint 11565 | -6/Garrison | Core integrity fell below 50% 11598 | -6/Garrison | Lost 9 parts (1p2n3u3w) 11701 | -6/Garrison | Garrison Relay disabled 11712 | -6/Garrison | Triggered checkpoint 11880 | -6/Garrison | Discovered new exit (range 8) 11912 | -6/Garrison | Expanded RIF knowledge: Zone Cloak 11921 | -6/Garrison | Entered Factory 11921 | -5/Factory | Accompanied by 3 allies 11921 | -5/Factory | Evolved 2 slots: Power x1, Propulsion x1 12137 | -5/Factory | Identified exit to Garrison 12204 | -5/Factory | Entered Garrison 12204 | -5/Garrison | Accompanied by 3 allies 12238 | -5/Garrison | Triggered checkpoint 12266 | -5/Garrison | Garrison Relay disabled 12359 | -5/Garrison | Triggered checkpoint 12369 | -5/Garrison | Triggered checkpoint 12408 | -5/Garrison | Destroyed 10 combat bots 12430 | -5/Garrison | Triggered checkpoint 12475 | -5/Garrison | Lost 4 parts (2n2w) 12662 | -5/Garrison | Discovered new exit (range 9) 12694 | -5/Garrison | Triggered checkpoint 12743 | -5/Garrison | Garrison Relay disabled 12856 | -5/Garrison | Triggered checkpoint 12919 | -5/Garrison | Garrison Relay disabled 12975 | -5/Garrison | Discovered new exit (range 14) 13115 | -5/Garrison | Discovered new exit (range 9) 13139 | -5/Garrison | Expanded RIF knowledge: Threat Obfuscation 13184 | -5/Garrison | Triggered checkpoint 13264 | -5/Garrison | Garrison Relay disabled 13321 | -5/Garrison | Entered Factory 13321 | -4/Factory | Accompanied by 5 allies 13321 | -4/Factory | Evolved 2 slots: Utility x2 13502 | -4/Factory | Fabricated H-66 Slayer? 13841 | -4/Factory | Assembled infested ambush trap array 13888 | -4/Factory | Spotted B-86 Titan 13902 | -4/Factory | Allies destroyed B-86 Titan 14491 | -4/Factory | Identified exit to Garrison 14491 | -4/Factory | Entered Garrison 14522 | -4/Garrison | Triggered checkpoint 14612 | -4/Garrison | Triggered checkpoint 14689 | -4/Garrison | Garrison Relay disabled 14764 | -4/Garrison | Spotted B-86 Titan 14798 | -4/Garrison | Triggered checkpoint 14808 | -4/Garrison | Destroyed B-86 Titan 14882 | -4/Garrison | Triggered checkpoint 14983 | -4/Garrison | System corruption reached 10% 15046 | -4/Garrison | Lost 14 parts (1p4n4u5w) 15111 | -4/Garrison | Build established: Scavenger-Mutant 15178 | -4/Garrison | Triggered checkpoint 15264 | -4/Garrison | Triggered checkpoint 15268 | -4/Garrison | Triggered checkpoint 15341 | -4/Garrison | Lost 3 parts (1u2w) 15411 | -4/Garrison | Lost 3 parts (1p1n1u) 15471 | -4/Garrison | Lost 6 parts (1p1n2u2w) 15696 | -4/Garrison | Destroyed 7 combat bots 16129 | -4/Garrison | Discovered new exit (range 15) 16156 | -4/Garrison | Triggered checkpoint 16166 | -4/Garrison | Discovered new exit (range 10) 16172 | -4/Garrison | Expanded RIF knowledge: Autoassimilate 16208 | -4/Garrison | Garrison Relay disabled 16347 | -4/Garrison | Entered Factory 16405 | -4/Factory | Spotted B-86 Titan 16502 | -4/Factory | Lost 4 parts (1p2n1u) 16524 | -4/Factory | Spotted B-86 Titan 16535 | -4/Factory | Discovered new exit (range 32) 16544 | -4/Factory | Core integrity fell below 50% 16556 | -4/Factory | Entered Upper Caves 16650 | -4/Upper Caves | Learned location of Armory (-3) 16666 | -4/Upper Caves | Attracted the attention of an 0b10 checkpoint 16720 | -4/Upper Caves | Spotted B-86 Titan 16743 | -4/Upper Caves | Learned Research non-interactive machine intel 16761 | -4/Upper Caves | Lost 6 parts (3n2u1w) 16825 | -4/Upper Caves | Core integrity fell below 20% 16862 | -4/Upper Caves | Acquired the password to a Derelict Tinkerer's latest research 16864 | -4/Upper Caves | Lost 6 parts (6u) 16873 | -4/Upper Caves | Found Prototype Special Weapon 16873 | -4/Upper Caves | Identified Molecular Deconstructor 17012 | -4/Upper Caves | Encountered a Warlord checkpoint 17051 | -4/Upper Caves | Discovered new exit (range 10) 17055 | -4/Upper Caves | Entered another Upper Caves area 17055 | -4/Upper Caves | Discovered new exit (range 6) 17058 | -4/Upper Caves | Entered Research 17058 | -3/Research | Evolved 2 slots: Utility x2 17059 | -3/Research | Loaded intel: 64 non-interactive machine locations 17355 | -3/Research | Build established: Mutant 17585 | -3/Research | Core integrity fell below 50% 17600 | -3/Research | Lost 7 parts (1p3n1u2w) 17612 | -3/Research | System corruption reached 10% 17620 | -3/Research | Core integrity fell below 20% 17693 | -3/Research | Spotted B-86 Titan 17701 | -3/Research | Discovered new exit (range 8) 17705 | -3/Research | Destroyed by Y-72 Warden with Quantum Rifle Last Messages --------------- 17601_ System corrupted: Heat flow error (+199). 17602_ Wall disintegrates. 17604_ Molecular Deconstructor destroyed. 17612_ Slug penetrates Wall. 17623_ Penetrated by Slug. 17623_ Slug penetrates Wall. 17632_ Slammed into S-43 Plague. 17635_ Adv. Target Analyzer destroyed. 17642_ W-44 Eye sends out distress signal. 17645_ K-01 Serf cleans the Mason Extractor. 17648_ W-44 Eye sends out distress signal. 17651_ K-01 Serf cleans the Mason Extractor. 17655_ Slammed into W-44 Eye. 17658_ K-01 Serf cleans the Mason Extractor. 17666_ Slug penetrates Wall. 17692_ Triggered Alarm Trap. 17692_ RIF jams signal. 17694_ U-05 Engineer lays Concrete. 17697_ XGJBTAOULAZAQZ/U77#KIBWACLI9 17701_ EXIT=FOUND Map ----- +----------------------------------------------------+ | ??# ! #"""" # ??????????????????? | | ??# #"""" ! ? ???????????????????? | | ??? ?# " ?? """ ||| ?????????????? | | ???? ?# ??? """ || ?????????????? | | ????? ??? ???? """ ??????????????? | | #######+######/#/##?? ???????????????? | | ### ?????????????????? | | ????????????????????? | | #???????????????????????????? | | #???????????????????????????? | | ####+########### #???????????????????????????? | | #?? ?????????# #???????????????????????????? | | #?? ?????????# #???????????????????????????? | | #? ????????# #???????????????????????????? | | #? ! ????????# #???????????????????????????? | | ########???????# #???????????????????????????? | | #??????????????# #???????????????????????????? | | #??????????????# ######+######### #??????????? | | #??????????????# #??????????? | | #??????????????+ #??????????? | | #??????????????# #??????????? | | #??????????????# ### #??????????? | | #?????????????##+##+##? #??????????? | | +?????????????# ## ###########??????????? | | #?????????????# ! # #???????????????????? | | #?????????????#! @ Y #???????????????????? | | #?????????????# ! # #???????????????????? | | #?????????????# ## ##???????????????????? | | #?????????????# / #? #????????????????????? | | #?????????????########??#????????????????????? | | +????????????????????????????????????????????? | | #????????????????????????????????????????????? | | #????????????????????????????????????????????? | | #????????????????????????????????????????????? | | #????????????????????????????????????????????? | | #????????????????????????????????????????????? | | #????????????????????????????????????????????? | | #????????????????????????????????????????????? | | ??????????????????????????????????????????????? | | ?????????????????????????????????????????????????? | | ???????"""???????????????????????????????????????? | | ???????"""???????????????????????????????????????? | | ???????"""???????????"""""???????????????????????? | | ???????"""???????????"""""???????????????????????? | | ???????"""???????????"""""???????????????????????? | | ?????????????????????????????????????????????????? | | ?????????????????????????????????????????????????? | | ?????????????????????????????????????????????????? | | ?????????????????????????????????????????????????? | | ?????????????????????????????????????????????????? | +----------------------------------------------------+ Best States ------------- Heat Dissipation 100 Energy Generation 36 Energy Capacity 1230 Matter Stores 1084 Matter Capacity 1300 Sight Range 22 Terrain Scan Range 24 Terrain Scan Density 10 ECM Strength 3 Jamming Range 8 EM Shielding 2 Armor Coverage 2400 Resistance: KI 30 Resistance: TH 25 Core Shielding 30 Power Shielding 66 Evasion (%) 63 Target Analysis 8 Core Analysis 10 Recoil Reduction 4 Matter Filtering 30 Kinecelleration 30 Offensive Hacking 12 Relay Coupler Types 213 Relay Coupler Value 5 Item Schematics ----------------- None Robot Schematics ------------------ H-66 Slayer | -6/Factory | Hacked Fabricated ------------ H-66 Slayer | x2 | -6/Factory H-66 Slayer | x2 | -4/Factory Alien Tech Used ----------------- None Achievements -------------- None Challenges ------------ None Game ------ Seed PowerReclamationPenetrator Manual? 0 Play Time 03:08:03 Cumulative 1073.5 hours Start 2020.10.31 @ 10:15:03 End 2020.10.31 @ 15:57:29 Sessions 3 Manual Loads 0 Difficulty Rogue Special Mode None Game No. 661 Rogue 661 Adventurer 0 Explorer 0 Win Type - Total 18 Types 10/1/4/3/0/0/0/0/0 Lore% 90 Gallery% 93 Achievement% 81 Wizard Run 0 Options --------- ASCII 0 Keyboard 0 Movement Mouse Keybinds 0 Fullscreen 2 Font 24/Smallcaps Map View 76x50 Tactical HUD 1 Map Filters NONE Filters NONE Steam 1 RUN: 0ef85e10-f763-47b9-89a6-dbb288af79bf